Cogmind - Beta 13 @@@ ROGUE MODE // 2024.04.07 @ 17:05:28 Player: Hazel Olivia Result: Destroyed by as-47923 with Assembled Blade Performance ------------- Evolutions (0) 0 Regions Visited (2) 400 Robots Destroyed (38) 190 Value Destroyed (713) 713 Prototype IDs (1) 20 Alien Tech Used (0) 0 Bonus (-49) -49 TOTAL SCORE: 1274 Bonus ------- Friendly Fire -49 Cogmind --------- Core Integrity 0/250 Matter 239/300 Energy 100/100 System Corruption 0% Temperature Cool (0) Movement Treading (240) Ox1 Location -10/Mines Parts ------- > --- POWER (1) -------- (None) > --- PROPULSION (2) --- Light Treads > --- UTILITY (2) ------ Large Storage Unit Thief Drone Bay (0/3) > --- WEAPON (2) ------- Heavy Assault Rifle Heavy Assault Rifle > --- INVENTORY (15) --- Light Ion Engine Light Nuclear Core Huge Storage Unit Compact Matter Pod (150) Weight Redist. System Structural Scanner Sensor Array Signal Interpreter Propulsion Shielding Utility Shielding Field Recycling Unit (0) Heavy Assault Rifle Heavy Assault Rifle Grenade Launcher Heavy Hammer Peak State ------------ > --- POWER ------------ Ion Engine > --- PROPULSION ------- Light Treads Light Treads > --- UTILITY ---------- Large Storage Unit Thief Drone Bay > --- WEAPON ----------- Heavy Assault Rifle Heavy Assault Rifle > --- INVENTORY -------- Light Ion Engine Light Nuclear Core Huge Storage Unit Compact Matter Pod Weight Redist. System Structural Scanner Sensor Array Signal Interpreter Propulsion Shielding Utility Shielding Field Recycling Unit Heavy Assault Rifle Heavy Assault Rifle Grenade Launcher Heavy Hammer [Rating: 17] Favorites ----------- Power Ion Engine Engine Ion Engine Propulsion Light Treads Treads Light Treads Utility Sensor Array Device Sensor Array Storage Large Storage Unit Weapon Heavy Assault Rifle Ballistic Gun Heavy Assault Rifle Launcher Grenade Launcher Build | -11 -10 -10 ------- Run | Yrd Mat Min Slots Evolved . | . . . Power . | . . . Propulsion . | . . . Utility . | . . . Weapon . | . . . Parts Attached 17 | 6 10 1 Power 2 | 1 1 . Engine 2 | 1 1 . Core . | . . . Reactor . | . . . Propulsion 2 | 2 . . Treads 2 | 2 . . Leg . | . . . Wheel . | . . . Hover . | . . . Flight . | . . . Utility 5 | 1 3 1 Device 2 | . 1 1 Storage 3 | 1 2 . Processor . | . . . Hackware . | . . . Protection . | . . . Artifact . | . . . Weapon 8 | 2 6 . Energy Gun . | . . . Energy Cannon . | . . . Ballistic Gun 7 | 2 5 . Ballistic Cannon . | . . . Launcher 1 | . 1 . Special Weapon . | . . . Impact Weapon . | . . . Slashing Weapon . | . . . Piercing Weapon . | . . . Special Melee Weapon . | . . . Unidentified Prototypes 1 | . . 1 Parts Lost 3 | . 1 2 Power 2 | . 1 1 Propulsion 1 | . . 1 Utility . | . . . Weapon . | . . . Highest Loss Streak 1 | . 1 1 To Critical Strikes . | . . . Average Slot Usage (%) 97 | . 97 97 Engine 13 | . 13 14 Treads 27 | . 28 25 Device 12 | . 11 14 Storage 14 | . 14 14 Ballistic Gun 28 | . 28 28 Naked Turns . | . . . Heaviest Build 90 | 14 90 35 Greatest Support 40 | 40 40 40 Greatest Overweight (x) 2 | . 2 1 Average Overweight (x) . | . . . Largest Inventory Capacity 25 | 8 25 15 Average Capacity 13 | 7 13 15 Most Carried 15 | 1 15 15 Average Carried 11 | . 10 14 Final Capacity 15 | 8 15 15 Final Carried 15 | 1 15 15 Class Distribution -------------------- 100% | Mutant Dominant Class ---------------- Mutant | -10/Materials Mutant | -10/Mines Resources | -11 -10 -10 ----------- Run | Yrd Mat Min Matter Collected 952 | 201 614 137 Remotely . | . . . Salvage Created 1299 | . 1014 285 Parts 84 | . 63 21 Haulers Intercepted 1 | . 1 . Recyclers Shooed 3 | . 3 . Parts Field Recycled . | . . . Retrieved Matter . | . . . Parts Self-Destructed . | . . . Prevented . | . . . Kills | -11 -10 -10 ------- Run | Yrd Mat Min Combat Hostiles Destroyed 22 | . 13 9 Guns 21 | . 12 9 AOE 1 | . 1 . Classes Destroyed 9 | . 8 1 Worker 5 | . 4 1 Builder 4 | . 3 1 Hauler 1 | . 1 . Recycler 4 | . 4 . Operator 2 | . 2 . Watcher 2 | . 2 . Swarmer 6 | . 3 3 Grunt 14 | . 10 4 Assembled 2 | . . 2 Best Kill Streak 7 | . 7 3 Combat Bots Only 3 | . 3 3 Max Kills in Single Turn 2 | . 2 1 Gunslinging . | . . . Exploded 1 | . 1 . Melee . | . . . Uniques/NPCs Destroyed . | . . . Combat | -11 -10 -10 -------- Run | Yrd Mat Min Hostile Shots Fired 83 | . 57 26 Missed 16 | . 13 3 Damage Taken 951 | . 525 426 Core 266 | . 157 109 Absorbed by Shields . | . . . Core Remaining (%) 100 | 100 . . Volleys Fired 92 | . 59 33 Largest 2 | . 2 2 Hottest 53 | . 53 46 Shots Fired 184 | . 118 66 Gun 182 | . 116 66 Cannon . | . . . Launcher 2 | . 2 . Special . | . . . Kinetic 182 | . 116 66 Thermal . | . . . Explosive 2 | . 2 . Electromagnetic . | . . . Robot Hit Streak 16 | . 16 5 Robot Miss Streak 4 | . 4 3 Penetration Max . | . . . Secondary Targets 3 | . 3 . Max Gunslinging Chain 1 | . 1 . Shots Hit Robots 113 | . 75 38 Core Hits 61 | . 44 17 Critical Kills . | . . . Critical Parts Destroyed 1 | . 1 . Critical Strikes 1 | . 1 . Destroy 1 | . 1 . Melee Attacks . | . . . Impact . | . . . Slashing . | . . . Piercing . | . . . Sneak Attacks . | . . . Combat Hostiles . | . . . Follow-up Attacks . | . . . Damage Inflicted 1811 | . 1221 590 Guns 1649 | . 1059 590 Cannons . | . . . Explosions 162 | . 162 . Melee . | . . . Ramming . | . . . Kinetic 1649 | . 1059 590 Thermal . | . . . Explosive 162 | . 162 . Electromagnetic . | . . . Impact . | . . . Slashing . | . . . Piercing . | . . . Highest Corruption . | . . . Average Corruption . | . . . Corruption Purged . | . . . Corruption Blocked . | . . . Overload Shots . | . . . Overflow Damage . | . . . Projectiles . | . . . Explosions . | . . . Melee . | . . . Knockbacks . | . . . Impact . | . . . Kinetic . | . . . Secondary . | . . . Self-Inflicted Damage . | . . . Shots . | . . . Rammed 1 | . 1 . Targets Rammed 1 | . 1 . Kicked . | . . . Crushed . | . . . Highest Temperature 20 | . 20 1 Average Temperature 5 | . 6 1 Received Heat Transfer 300 | . 276 24 Siege Activations . | . . . Robots Corrupted . | . . . Combat Hostiles . | . . . Parts Fried . | . . . Impact Corruptions . | . . . Robots Melted . | . . . Combat Hostiles . | . . . Parts Melted . | . . . Heat Transferred . | . . . Parts Sabotaged . | . . . Parts Stolen . | . . . Parts Stripped . | . . . Power Chain Reactions . | . . . Alert | -11 -10 -10 ------- Run | Yrd Mat Min Peak Influence 201 | . 201 161 Initial 45 | . . 45 Average 75 | . 68 103 Maximum Alert Level 1 | . 1 . Low Security (%) 95 | 100 93 100 Level 1 4 | . 6 . Level 2 . | . . . Level 3 . | . . . Level 4 . | . . . Level 5 . | . . . High Security . | . . . Max Security . | . . . Squads Dispatched 3 | . 3 . Investigation 2 | . 2 . Extermination . | . . . Reinforcement 1 | . 1 . Assault . | . . . Garrison . | . . . Intercept . | . . . Searches Triggered . | . . . Construction Impeded . | . . . Haulers Reinforced . | . . . Active Scanning Responses . | . . . Cargo Convoy Interrupts . | . . . Stealth | -11 -10 -10 --------- Run | Yrd Mat Min Distress Signals 2 | . 2 . Communications Jammed . | . . . Distress Signals . | . . . Times Spotted 44 | . 24 20 Peak Tracking Total 14 | . 4 14 Tactical Retreats 4 | . 2 2 Traps | -11 -10 -10 ------- Run | Yrd Mat Min Traps Triggered . | . . . Indirectly . | . . . Trap Hack Attempts . | . . . Triggered . | . . . Disarmed . | . . . Reprogrammed . | . . . Reused . | . . . Traps Extracted . | . . . Installed . | . . . Triggered . | . . . Machines | -11 -10 -10 ---------- Run | Yrd Mat Min Machines Disabled 1 | . 1 . Max in Single Turn 1 | . 1 . Machines Repaired . | . . . Machines Dismantled . | . . . Machines Sabotaged . | . . . Overloaded Fab Kills . | . . . Hacking | -11 -10 -10 --------- Run | Yrd Mat Min Machines Accessed 10 | . 8 2 Terminals 6 | . 5 1 Fabricators . | . . . Repair Stations 1 | . 1 . Recycling Units 2 | . 2 . Scanalyzers . | . . . Garrison Access . | . . . Total Hacks 18 | . 15 3 Successful 10 | . 8 2 Failed 8 | . 7 1 Catastrophic 1 | . 1 . Database Lockouts . | . . . Manual 5 | . 5 . Terminals 11 | . 9 2 Fabricators . | . . . Repair Stations 2 | . 2 . Recycling Units 4 | . 4 . Scanalyzers . | . . . Garrison Access . | . . . Terminal Hacks 8 | . 6 2 Open Door 1 | . . 1 Branch Access Points 1 | . 1 . Locate Traps 2 | . 2 . Disarm Traps 1 | . 1 . Dispatch Records 2 | . 1 1 Zone Layout 1 | . 1 . Fabricator Hacks . | . . . Repair Station Hacks . | . . . Recycling Unit Hacks 2 | . 2 . Report Inventory 2 | . 2 . Scanalyzer . | . . . Garrison Access Hacks . | . . . Unauthorized Hacks . | . . . Terminals . | . . . Fabricators . | . . . Repair Stations . | . . . Recycling Units . | . . . Scanalyzers . | . . . Garrison Access . | . . . Data Cores Recovered 1 | . 1 . Used . | . . . Hacking Detections 6 | . 5 1 Full Trace Events 2 | . 2 . Feedback Events . | . . . Feedback Blocked . | . . . Robot Schematics Acquired . | . . . Robots Built . | . . . Authchips . | . . . Time . | . . . Total Robot Build Rating . | . . . Part Schematics Acquired . | . . . Parts Built . | . . . Authchips . | . . . Time . | . . . Total Part Build Rating . | . . . Parts Repaired . | . . . Time . | . . . Parts Recycled . | . . . Recycled Matter . | . . . Retrieved Matter . | . . . Retrieved Components . | . . . Parts Scanalyzed . | . . . Part Schematics Acquired . | . . . Parts Damaged . | . . . Bothacking | -11 -10 -10 ------------ Run | Yrd Mat Min Used RIF Installer . | . . . Robots Hacked . | . . . Non-combat . | . . . Combat . | . . . Robot Hacks Applied . | . . . Relay Couplers Released . | . . . Fabnet Peak Effective % . | . . . Robots Rewired . | . . . Allies Hacked . | . . . Hacks Repelled . | . . . Allies | -11 -10 -10 -------- Run | Yrd Mat Min Total Allies . | . . . Largest Group . | . . . Highest-Rated Group . | . . . Highest-Rated Ally . | . . . Total Orders . | . . . Ally Attacks 24 | . . 24 Total Damage 146 | . . 146 Kills 1 | . . 1 Allies Corrupted . | . . . Allies Melted . | . . . Intel | -11 -10 -10 ------- Run | Yrd Mat Min Robot Analysis Total . | . . . Derelict Logs Recovered . | . . . Drone Launches 7 | . . 7 Drone Recoveries 4 | . . 4 Exploration | -11 -10 -10 ------------- Run | Yrd Mat Min Turns Passed 2270 | 53 1678 539 Spaces Moved 1102 | 27 817 258 Core 2 | 2 . . Treads 1100 | 25 817 258 Legs . | . . . Wheels . | . . . Hover . | . . . Flight . | . . . Fastest Speed 50 | 50 160 160 Average Speed 171 | 151 173 167 Slowest Speed 320 | 160 320 240 Overloaded Moves . | . . . Propulsion Burnouts . | . . . Robots Hopped . | . . . Cave-ins Triggered . | . . . Exploration Rate (%) 50 | 3 99 50 Regions Visited 2 Branch Regions 1 Pre-discovered Areas . | . . . Known Exits Taken 1 | . 1 . Unknown Exits Taken 1 | 1 . . Scrap Searched . | . . . Spaces Dug . | . . . Terrain Destroyed 17 | . 17 . Melee . | . . . Projectile . | . . . AOE 17 | . 17 . Terrain Rammed . | . . . Walls Destroyed . | . . . Machines Disabled . | . . . Actions | -11 -10 -10 --------- Run | Yrd Mat Min Total 1298 | 36 962 300 Wait 50 | 3 43 4 Move 1100 | 26 816 258 Hop . | . . . Pick Up 26 | 1 23 2 Fast Attach 8 | 6 2 . Attach . | . . . Detach . | . . . Swap 9 | . 8 1 Drop 12 | . 10 2 Fire 92 | . 59 33 Melee . | . . . Ram . | . . . Kick . | . . . Crush 1 | . 1 . Escape Stasis . | . . . Rewire . | . . . Trap . | . . . Miscellaneous . | . . . Route ------- -11/Scrapyard -10/Materials (discovered 6 exits: [*Mat x3] / *Min x2 / [*Sub]) -10/Mines (discovered 1 exit: [*Mat]) History --------- Turn | Location | Event 24 | -11/Scrapyard | Discovered new exit (range 16) 54 | -11/Scrapyard | Entered Materials 89 | -10/Materials | Discovered new exit (range 16) 219 | -10/Materials | Identified exit to Mines 301 | -10/Materials | Build established: Mutant 724 | -10/Materials | Discovered new exit (range 16) 1001 | -10/Materials | Discovered new exit (range 16) 1242 | -10/Materials | Core integrity fell below 50% 1407 | -10/Materials | Discovered new exit (range 10) 1665 | -10/Materials | Discovered new exit (range 11) 1732 | -10/Materials | Entered Mines 1812 | -10/Mines | Discovered new exit (range 12) 1877 | -10/Mines | Found the Drone Emporium 1886 | -10/Mines | Found Prototype Device 1887 | -10/Mines | Identified Thief Drone Bay 1925 | -10/Mines | Received a Rocket Launcher from a helpful Derelict 2231 | -10/Mines | Assembled infested the area 2254 | -10/Mines | Core integrity fell below 20% 2271 | -10/Mines | Destroyed by as-47923 with Assembled Blade Last Messages --------------- 02182_ Thief Drone delivers Aluminum Leg. 02182_ Thief Drone retrieved by Thief Drone Bay. 02182_ G-47 Trooper destroyed. 02190_ Acquired 24 matter. 02193_ Acquired 23 matter. 02204_ K-01 Serf collects debris. 02205_ G-47 Trooper destroyed. 02208_ K-01 Serf collects debris. 02231_ ALERT: Infestation in the mines, dispatching Demolisher response squad. 02239_ as-97653 destroyed. 02245_ as-75744 destroyed. 02255_ Thief Drone released from Thief Drone Bay. 02256_ Thief Drone sneak attacks. 02259_ Destroyed Asb. Hover Unit. 02259_ as-01381 destroyed. 02265_ Thief Drone destroyed. 02268_ as-76034 destroyed. 02270_ Ion Engine destroyed. Map ----- +----------------------------------------------------+ | ???## #????????# ####?????# #??????????? | | ????# #???????##=#####????# #??????????? | | ##### #???????# ##???# ###????????? | | #???????# #??## ##???????? | | #######???????# #?## ##??????? | | ??????????????# #?# #??????? | | ?????????????## ##?# #??????? | | ##??????????## ###??## #??????? | | #?????????## ##?????# ##??????? | | #????????## ##??????## #####????? | | #??????### [ ##????????# ####* ##???? | | #?????## ##???????### ###%! #???? | | ####### ##???????## = %! #???? | | """ ########## == ##??? | | ######### """ # *= = #??? | | ????????# """ =%! #??? | | ????????# ###### % a #?? | | ????????# ##????# % #? | | ???????# ##?????# ## #? | | ?????? ##??????## #?## ##? | | ????? ###????????# ???### ###?? | | ???? ##??????????# #?????? #???? | | ???## ##???????????# #?????? #???? | | ????## ####????????????# #?????? #???? | | ?????## ????????????????#aa#?????? ???? | | ????????????????????????#@%#?????? ???? | | ????????????????????????#aa#??????? ???? | | ????????????????????????# aa #????????? | | ????????????????????????# ##a#????????? | | ????????????????????????# #??#????????? | | ????????????????????????#a #???????????? | | ???????????????????????? #???????????? | | ???????????????????????? #???????????? | | ???????????????????????#####???????????? | | ???????????????????????????????????????? | | ???????????????????????????????????????? | | ???????????????????????????????????????? | | ???????????????????????????????????????? | | ???????????????????????????????????????? | | ???????????????????????????????????????? | | ???????????????????????????????????????? | | ???????????????????????????????????????? | | ???????????????????????????????????????? | | ???????????????????????????????????????? | | ???????????????????????????????????????? | | ???????????????????????????????????????? | | ???????????????????????????????????????? | | ???????????????????????????????????????? | | ???????????????????????????????????????? | | ???????????????????????????????????????? | +----------------------------------------------------+ Best States ------------- Heat Dissipation 25 Energy Generation 10 Energy Capacity 250 Matter Stores 300 Matter Capacity 300 Sight Range 16 Robot Scan Range 14 Terrain Scan Density 10 Evasion (%) 40 Recoil Reduction 2 Item Schematics ----------------- None Robot Schematics ------------------ None Fabricated ------------ Nothing Alien Tech Used ----------------- None Achievements -------------- None Challenges ------------ None Game ------ Seed CoolantOpticalDevice Manual? 0 Play Time 00:31:24 Cumulative 10.1 hours Start 2024.04.07 @ 16:35:32 End 2024.04.07 @ 17:05:28 Sessions 1 Manual Loads 0 Difficulty Rogue Special Mode None Game No. 8 Rogue 2 Adventurer 6 Explorer 0 Win Type - Total 0 Types 0/0/0/0/0/0/0/0/0 Lore% 6 Gallery% 12 Achievement% 11 Wizard Run 0 Options --------- Layout 1 ASCII 0 Keyboard 0 Movement Mouse Keybinds 0 Fullscreen 1 Font 24/Smallcaps Map View 25x17 Zoom Use 56% Tactical HUD 1 Map Filters NONE Filters NONE Steam 1 RUN: caa8e929-667d-471b-90e5-20a061780369